Cogmind - Beta 14 @@@ ROGUE MODE // 2024.12.11 @ 11:48:32 Player: Pitt Result: Self-destructed Performance ------------- Evolutions (1) 500 Regions Visited (2) 400 Robots Destroyed (16) 80 Value Destroyed (230) 230 Prototype IDs (0) 0 Alien Tech Used (0) 0 Bonus (0) 0 TOTAL SCORE: 1210 Bonus ------- None Cogmind --------- Core Integrity 89/400 Matter 271/300 Energy 100/100 System Corruption 3% Temperature Cool (0) Movement Rolling (80) Location -9/Materials Parts ------- > --- POWER (1) -------- (None) > --- PROPULSION (3) --- Wheel > --- UTILITY (3) ------ Small Storage Unit Terrain Scan Processor > --- WEAPON (2) ------- (None) > --- INVENTORY (8) ---- Ion Engine Heat Sink Structural Scanner Seismic Detector Light Armor Plating Mining Laser Peak State ------------ > --- POWER ------------ Ion Engine > --- PROPULSION ------- Wheel Wheel Wheel > --- UTILITY ---------- Small Storage Unit Improved Terrain Scanner Terrain Scan Processor > --- WEAPON ----------- Beam Rifle Assault Rifle > --- INVENTORY -------- Ion Engine Heat Sink Structural Scanner Seismic Detector Light Armor Plating Small Laser Mining Laser [Rating: 13] Favorites ----------- Power Ion Engine Engine Ion Engine Propulsion Wheel Wheel Wheel Utility Small Storage Unit Device Improved Terrain Scanner Storage Small Storage Unit Processor Terrain Scan Processor Protection Light Armor Plating Weapon Assault Rifle Energy Gun Small Laser Ballistic Gun Assault Rifle Special Weapon Mining Laser Build | -11 -10 -9 ------- Run | Yrd Mat Mat Slots Evolved 2 | . . 2 Power . | . . . Propulsion 1 | . . 1 Utility 1 | . . 1 Weapon . | . . . Parts Attached 23 | 8 . 15 Power 2 | 1 . 1 Engine 2 | 1 . 1 Core . | . . . Reactor . | . . . Propulsion 4 | 2 . 2 Treads . | . . . Leg . | . . . Wheel 4 | 2 . 2 Hover . | . . . Flight . | . . . Utility 7 | 3 . 4 Device 3 | 2 . 1 Storage 1 | 1 . . Processor 2 | . . 2 Hackware . | . . . Protection 1 | . . 1 Artifact . | . . . Weapon 10 | 2 . 8 Energy Gun 4 | 1 . 3 Energy Cannon . | . . . Ballistic Gun 3 | 1 . 2 Ballistic Cannon . | . . . Launcher . | . . . Special Weapon 3 | . . 3 Impact Weapon . | . . . Slashing Weapon . | . . . Piercing Weapon . | . . . Special Melee Weapon . | . . . Unidentified Prototypes . | . . . Parts Lost 10 | . . 10 Power 2 | . . 2 Propulsion 3 | . . 3 Utility 2 | . . 2 Weapon 3 | . . 3 Highest Loss Streak 6 | . . 6 To Critical Strikes . | . . . Average Slot Usage (%) 98 | . 100 98 Engine 11 | . 14 10 Wheel 32 | . 28 32 Device 15 | . 14 15 Storage 11 | . 14 11 Processor 5 | . . 5 Energy Gun 10 | . 14 10 Ballistic Gun 10 | . 14 10 Peak Build Rating 13 | 9 9 13 Average Rating 10 | 6 9 11 On Entrance 6 | . 9 9 Naked Turns . | . . . Heaviest Build 19 | 14 14 19 Greatest Support 30 | 20 20 30 Greatest Overweight (x) . | . . . Average Overweight (x) . | . . . Largest Inventory Capacity 8 | 8 8 8 Average Capacity 7 | 7 8 8 Most Carried 8 | 5 6 8 Average Carried 5 | 2 5 5 Final Capacity 8 | 8 8 8 Final Carried 6 | 5 6 6 Class Distribution -------------------- 92% | Mutant 7% | Scavenger-Mutant Dominant Class ---------------- Mutant | -10/Materials Mutant | -9/Materials Resources | -11 -10 -9 ----------- Run | Yrd Mat Mat Matter Collected 477 | 283 . 194 Remotely . | . . . Salvage Created 477 | 196 . 281 Parts 40 | 14 . 26 Haulers Intercepted . | . . . Recyclers Shooed 1 | 1 . . Parts Field Recycled . | . . . Retrieved Matter . | . . . Parts Self-Destructed . | . . . Prevented . | . . . Kills | -11 -10 -9 ------- Run | Yrd Mat Mat Combat Hostiles Destroyed 7 | . . 7 Guns 7 | . . 7 Classes Destroyed 6 | 2 . 4 Builder 3 | . . 3 Tunneler 5 | 5 . . Recycler 1 | 1 . . Swarmer 4 | . . 4 Grunt 1 | . . 1 Sentry 2 | . . 2 Best Kill Streak 6 | 5 . 6 Combat Bots Only 5 | . . 5 Max Kills in Single Turn 1 | 1 . 1 Gunslinging . | . . . Exploded . | . . . Melee . | . . . Uniques/NPCs Destroyed . | . . . Combat | -11 -10 -9 -------- Run | Yrd Mat Mat Hostile Shots Fired 88 | . . 88 Missed 18 | . . 18 Damage Taken 1099 | . . 1099 Core 311 | . . 311 Absorbed by Shields . | . . . Core Remaining (%) 100 | 100 100 . Volleys Fired 101 | 24 1 76 Largest 2 | 2 1 2 Hottest 100 | 60 40 100 Shots Fired 133 | 25 1 107 Gun 129 | 25 1 103 Cannon . | . . . Launcher . | . . . Special 4 | . . 4 Kinetic 44 | 1 . 43 Thermal 89 | 24 1 64 Explosive . | . . . Electromagnetic . | . . . Robot Hit Streak 13 | 4 3 13 Robot Miss Streak 8 | 3 . 8 Penetration Max . | . . . Secondary Targets 1 | . . 1 Max Gunslinging Chain 1 | . . 1 Shots Hit Robots 79 | 14 1 64 Core Hits 23 | 7 . 16 Critical Kills . | . . . Critical Parts Destroyed . | . . . Critical Strikes . | . . . Melee Attacks . | . . . Impact . | . . . Slashing . | . . . Piercing . | . . . Sneak Attacks . | . . . Combat Hostiles . | . . . Follow-up Attacks . | . . . Damage Inflicted 933 | 154 12 767 Guns 925 | 154 12 759 Cannons . | . . . Explosions . | . . . Melee . | . . . Ramming 8 | . . 8 Kinetic 340 | 14 . 326 Thermal 585 | 140 12 433 Explosive . | . . . Electromagnetic . | . . . Impact . | . . . Slashing . | . . . Piercing . | . . . Highest Corruption 3 | . . 3 Average Corruption 3 | . . 3 Corruption Purged . | . . . Corruption Blocked . | . . . Effects 3 | . . 3 Data Loss (major) 1 | . . 1 Alerts 1 | . . 1 Weapon Failures 1 | . . 1 Overload Shots . | . . . Overflow Damage . | . . . Projectiles . | . . . Explosions . | . . . Melee . | . . . Knockbacks . | . . . Impact . | . . . Kinetic . | . . . Secondary . | . . . Self-Inflicted Damage 3 | . . 3 Shots . | . . . Rammed 2 | . . 2 Targets Rammed 2 | . . 2 Kicked . | . . . Crushed . | . . . Highest Temperature 138 | . . 138 Average Temperature 36 | . . 36 Received Heat Transfer 345 | . . 345 Siege Activations . | . . . Robots Corrupted . | . . . Combat Hostiles . | . . . Parts Fried . | . . . Impact Corruptions . | . . . Robots Melted . | . . . Combat Hostiles . | . . . Parts Melted . | . . . Heat Transferred 1371 | 325 25 1021 Parts Sabotaged . | . . . Parts Stolen . | . . . Parts Stripped . | . . . Power Chain Reactions . | . . . Alert | -11 -10 -9 ------- Run | Yrd Mat Mat Peak Influence 153 | 30 70 153 Initial 29 | . 19 29 Average 26 | 14 42 26 Maximum Alert Level . | . . . Low Security (%) 100 | 100 100 100 Level 1 . | . . . Level 2 . | . . . Level 3 . | . . . Level 4 . | . . . Level 5 . | . . . High Security . | . . . Max Security . | . . . Squads Dispatched . | . . . Investigation . | . . . Extermination . | . . . Reinforcement . | . . . Assault . | . . . Garrison . | . . . Intercept . | . . . Searches Triggered . | . . . Construction Impeded . | . . . Haulers Reinforced . | . . . Active Scanning Responses . | . . . Cargo Convoy Interrupts . | . . . Stealth | -11 -10 -9 --------- Run | Yrd Mat Mat Distress Signals 2 | . 1 1 Communications Jammed . | . . . Distress Signals . | . . . Times Spotted 15 | . 1 14 Peak Tracking Total 7 | . 4 7 Tactical Retreats 1 | . 1 . Traps | -11 -10 -9 ------- Run | Yrd Mat Mat Traps Triggered . | . . . Indirectly . | . . . Trap Hack Attempts . | . . . Triggered . | . . . Disarmed . | . . . Reprogrammed . | . . . Reused . | . . . Traps Extracted . | . . . Installed . | . . . Triggered . | . . . Machines | -11 -10 -9 ---------- Run | Yrd Mat Mat Machines Disabled 1 | . . 1 Max in Single Turn 1 | . . 1 Machines Repaired . | . . . Machines Dismantled . | . . . Machines Sabotaged . | . . . Overloaded Fab Kills . | . . . Hacking | -11 -10 -9 --------- Run | Yrd Mat Mat Machines Accessed 2 | . 2 . Terminals 2 | . 2 . Fabricators . | . . . Repair Stations . | . . . Recycling Units . | . . . Scanalyzers . | . . . Garrison Access . | . . . Total Hacks 7 | . 7 . Successful 4 | . 4 . Failed 3 | . 3 . Catastrophic 2 | . 2 . Database Lockouts . | . . . Manual 7 | . 7 . Terminals 7 | . 7 . Fabricators . | . . . Repair Stations . | . . . Recycling Units . | . . . Scanalyzers . | . . . Garrison Access . | . . . Terminal Hacks 1 | . 1 . Terminal Index 1 | . 1 . Fabricator Hacks . | . . . Repair Station Hacks . | . . . Recycling Unit Hacks . | . . . Scanalyzer . | . . . Garrison Access Hacks . | . . . Unauthorized Hacks 3 | . 3 . Terminals 3 | . 3 . Track 1 | . 1 . Botnet 1 | . 1 . Operators 1 | . 1 . Fabricators . | . . . Repair Stations . | . . . Recycling Units . | . . . Scanalyzers . | . . . Garrison Access . | . . . Data Cores Recovered . | . . . Used . | . . . Hacking Detections 1 | . 1 . Full Trace Events . | . . . Feedback Events . | . . . Feedback Blocked . | . . . Robot Schematics Acquired . | . . . Robots Built . | . . . Authchips . | . . . Time . | . . . Total Robot Build Rating . | . . . Part Schematics Acquired . | . . . Parts Built . | . . . Authchips . | . . . Time . | . . . Total Part Build Rating . | . . . Parts Repaired . | . . . Time . | . . . Parts Recycled . | . . . Recycled Matter . | . . . Retrieved Matter . | . . . Retrieved Components . | . . . Parts Scanalyzed . | . . . Part Schematics Acquired . | . . . Parts Damaged . | . . . Bothacking | -11 -10 -9 ------------ Run | Yrd Mat Mat Used RIF Installer . | . . . Robots Hacked . | . . . Non-combat . | . . . Combat . | . . . Robot Hacks Applied . | . . . Relay Couplers Released . | . . . Fabnet Peak Effective % . | . . . Robots Rewired . | . . . Allies Hacked . | . . . Hacks Repelled . | . . . Allies | -11 -10 -9 -------- Run | Yrd Mat Mat Total Allies . | . . . Largest Group . | . . . Highest-Rated Group . | . . . Highest-Rated Ally . | . . . Total Orders . | . . . Ally Attacks . | . . . Total Damage . | . . . Kills . | . . . Allies Corrupted . | . . . Allies Melted . | . . . Intel | -11 -10 -9 ------- Run | Yrd Mat Mat Robot Analysis Total . | . . . Derelict Logs Recovered . | . . . Drone Launches . | . . . Drone Recoveries . | . . . Exploration | -11 -10 -9 ------------- Run | Yrd Mat Mat Turns Passed 1742 | 162 121 1459 Spaces Moved 442 | 121 125 196 Core 1 | 1 . . Treads . | . . . Legs . | . . . Wheels 441 | 120 125 196 Hover . | . . . Flight . | . . . Fastest Speed 50 | 50 80 80 Average Speed 79 | 79 80 80 Slowest Speed 80 | 80 80 80 Overloaded Moves . | . . . Propulsion Burnouts . | . . . Robots Hopped . | . . . Cave-ins Triggered 1 | . . 1 Exploration Rate (%) 17 | 4 33 15 Regions Visited 2 Branch Regions . Pre-discovered Areas . | . . . Known Exits Taken . | . . . Unknown Exits Taken 2 | 1 1 . Scrap Searched . | . . . Spaces Dug 4 | . . 4 Terrain Destroyed 4 | . . 4 Melee . | . . . Projectile 4 | . . 4 AOE . | . . . Terrain Rammed . | . . . Walls Destroyed . | . . . Machines Disabled . | . . . Actions | -11 -10 -9 --------- Run | Yrd Mat Mat Total 1679 | 157 144 1378 Wait 1101 | . 18 1083 Move 440 | 120 124 196 Hop . | . . . Pick Up 10 | 5 1 4 Fast Attach 9 | 7 . 2 Attach 6 | . . 6 Detach 2 | . . 2 Swap 8 | 1 . 7 Drop . | . . . Fire 101 | 24 1 76 Melee . | . . . Ram 2 | . . 2 Kick . | . . . Crush . | . . . Escape Stasis . | . . . Rewire . | . . . Trap . | . . . Miscellaneous . | . . . Route ------- -11/Scrapyard -10/Materials -9/Materials History --------- Turn | Location | Event 14 | -11/Scrapyard | Discovered new exit (range 15) 163 | -11/Scrapyard | Entered Materials 267 | -10/Materials | Discovered new exit (range 15) 284 | -10/Materials | Entered another Materials area 284 | -9/Materials | Evolved 2 slots: Propulsion x1, Utility x1 306 | -9/Materials | Build established: Mutant 1565 | -9/Materials | Crushed by falling debris 1631 | -9/Materials | Core integrity fell below 50% 1743 | -9/Materials | Self-destructed Last Messages --------------- 01703_ R-06 Scavenger collects Aluminum Leg. 01705_ Critical hit (Burn: +37). 01705_ K-01 Serf cleans the Atomic Centrifuge. 01711_ Critical hit (Burn: +37). 01718_ K-01 Serf cleans the Atomic Centrifuge. 01723_ Wheel destroyed. 01725_ G-47 Trooper overheating. 01727_ K-01 Serf cleans the Atomic Centrifuge. 01728_ G-47 Trooper overheating. 01730_ G-47 Trooper heat damages Aluminum Leg. 01731_ Lgt. Ion Engine destroyed. 01731_ K-01 Serf cleans the Atomic Centrifuge. 01732_ G-47 Trooper heat damages Imp. Heat Sink. 01733_ Imp. Terrain Scanner destroyed. 01734_ K-01 Serf cleans the Atomic Centrifuge. 01738_ Wheel destroyed. 01738_ K-01 Serf cleans the Atomic Centrifuge. 01741_ Sml. Laser destroyed. 01741_ Slammed into U-05 Engineer. 01742_ Slammed into Y-45 Defender. Map ----- +----------------------------------------------------+ | ?????????????????????????????????????????????????? | | ?????????????????????????????????????????????????? | | ?????????????????????????????????????????????????? | | ?????????????????????????????????????????????????? | | ?????????????????????????????????????????????????? | | ?????????????????????????+???????????????????????? | | ????????????????????????? ###????????????????????? | | ????????????????????????# T ????????????????????? | | ????????????????????#### ????????????????????? | | ??????????????????? ? ? ????????????????????? | | ????????????????? ? ???? ?????????????????? | | ???????????????# ? ???? ? ? #??????????????? | | ???????????????# ? ? ?# ? #??????????????? | | ?????????????? ?? ??? ?? ##?????????????? | | ???????????? ? #???? ? """ ##?#???????????? | | ????????????T? ??? ? # """ ##?????????????? | | ??????????? ? ?#??? ??# """ ? ?????????? | | ????????????##?#?? ? #T ??? ????????????? | | ???????????"?? #??? ? ?## ??? ? ? ???????? | | ????????????T" #??? ?# ??? ??#????????????? | | ???????????? ? ??#???#??#%#??#?/??#?#?#?? ? ????? | | ?????????? ? ??????######g# ??? !#??#?##????#?? | | ?????????? ? ?#?#???#?##g#?? ? ??? ???##??#?##??# | | ??????????""? ?##?#??#?##r# ??"?? ####???#?#?#?? | | ????????????? ?#??####?##Y#? ? ?"" ##?#????????#? | | ??????????"""? ##??#?####@#?? """ #######?????#? | | ?????????????? ?####??###u# ??? ? ####??######?? | | ???????????+??????#?#??## # ##########?### | | ???????????? #?#?#####?# # ## ###### | | ??????????? ?##?????#?## ########+### ###### | | ???????????? #?###?#?###u# # ### """ ###### | | ??????????? ???#####?##?# # """ # ### """ ###### | | ???????????? ??###???### # """ # ### """ ###### | | ???????????? #######??#?# # """ # ### ###### | | ?????????????##?##??##### # # ######+####### | | ???????????????#####?#??#m# """ # ^ | | ??????????? ?#?#####?#### # """ + | | ??????????? ?#???####?###=#=""" # | | ??????????? ?# ???? ### #%= #############+## | | ?????????????#? ? ?###w#! "" ###### ## | | ?????????? ???? ???? ?###[# """ ###### ## | | ?????????????#????????###!# """ ###### ## | | ??????????? ??? ? ? ???#*# ##?### ## | | ??????????????? ? ?? ???# ##########?## """" ## | | ???????????????? ? #?# #####?####### """" ## | | ???????????? ????? ???# ####?######## """" ## | | ??????????????? ???? ?#?# #?########?## ## | | ????????????????????#?#?# #######??##?############ | | ????????????? ????????? ########?############### | | ?????????????? ?? ? ?##?# ####?################### | +----------------------------------------------------+ Best States ------------- Heat Dissipation 28 Energy Generation 10 Energy Capacity 250 Matter Stores 300 Matter Capacity 300 Sight Range 16 Terrain Scan Range 16 Terrain Scan Density 85 Armor Coverage 150 Evasion (%) 44 Item Schematics ----------------- None Robot Schematics ------------------ None Fabricated ------------ Nothing Alien Tech Used ----------------- None Achievements -------------- None Challenges ------------ None Game ------ Seed CompanionCatalystDeflector Manual? 0 Play Time 00:13:12 Cumulative 225.6 hours Start 2024.12.11 @ 11:37:35 End 2024.12.11 @ 11:48:32 Sessions 1 Manual Loads 0 Difficulty Rogue Special Mode None Game No. 350 Rogue 350 Adventurer 0 Explorer 0 Win Type - Total 0 Types 0/0/0/0/0/0/0/0/0 Lore% 38 Gallery% 56 Achievement% 41 Wizard Run 0 Options --------- Layout 0 ASCII 0 Keyboard 0 Movement Mouse Keybinds 0 Fullscreen 1 Font 18/SmallcapsGlow Map View 76x50 Zoom Use 0% Tactical HUD 1 Map Filters NONE Filters NONE Steam 1 RUN: f43399ae-282d-4b4f-8b8b-a6d8f6434153